[Event "Przeworsk GM norm 2022"]
[Site "Przeworsk"]
[Date "2022.05.31"]
[Round "3.1"]
[White "Golubka, Petro"]
[Black "Stefansson, Hannes"]
[Result "0-1"]
[ECO "E24"]
[WhiteElo "2380"]
[BlackElo "2534"]
[Annotator "TA"]
[PlyCount "118"]
[EventDate "2022.05.30"]
[EventType "tourn"]
[EventCountry "POL"]
[SourceTitle "playchess.com"]
[Source "ChessBase"]
[SourceQuality "1"]
[TimeControl "40/5400+30:1800+30"]

{[%evp 15,118,0,5,-27,5,-8,0,0,0,5,8,0,0,0,0,0,0,0,0,0,0,0,0,0,3,0,6,3,7,0,19,11,15,14,54,0,15,0,11,0,0,0,0,0,0,-4,-4,-4,0,-11,-12,-12,-12,-23,-20,-31,-32,-27,-23,-18,0,-8,-12,-8,0,0,0,0,0,-52,-37,-188,-193,-301,-282,-256,-254,-366,-371,-554,-524,-738,-732,-800,-765,-29953,-29954,-29957,-29953,-29960,-29956,-12795,-5373,-29985,-29986,-29986,-29987,-29991,-29992,-29992,-29993,-29993,-29994,-29995,-29996]} 1. d4 {[%emt 0:00:21]} Nf6 {[%emt 0:00:45]} 2. c4 {[%emt 0:00:16]} e6 {[%emt 0:00:17]} 3. Nc3 {[%emt 0:00:34]} Bb4 {[%emt 0:00:19]} 4. a3 {[%emt 0:01:11]} Bxc3+ {[%emt 0:00:28]} 5. bxc3 {[%emt 0:00:04]} c5 {[%emt 0:02:15]} 6. f3 {[%emt 0:02:00]} d5 {[%emt 0:03:23]} 7. e3 {[%emt 0:00:38][%cal Be2e3,Be3e4][%mdl 32]} O-O {[%emt 0:07:13]} 8. cxd5 {[%emt 0:01:53]} Nxd5 {[%emt 0:00:32]} 9. Ne2 {[%emt 0:02:23] E24: Nimzo-Indian: Sämisch: Unusual Black 5th moves and 5...c5 sidelines.} b6 {[%emt 0:07:47] [#]} 10. dxc5 $146 {[%emt 0:03:13]} ({Predecessor:} 10. e4 Ne7 11. Be3 cxd4 12. cxd4 Ba6 13. Rc1 Qd7 14. Nf4 Bxf1 15. Rxf1 Rd8 16. Rf2 Nbc6 {½-½ (27) Ugge,A (2420)-Rydholm,L (2465) ICCF corr 1997}) 10... bxc5 {[%emt 0:01:07]} 11. e4 {[%emt 0:01:45] The position is equal.} Nb6 {[%emt 0:01:23]} 12. Qxd8 {[%emt 0:01:03]} Rxd8 {[%emt 0:00:07]} 13. a4 {[%emt 0:01:50]} Ba6 {[%emt 0:03:21]} 14. Bg5 {[%emt 0:02:39]} f6 {[%emt 0:00:51]} 15. Be3 {[%emt 0:02:03]} N8d7 {[%emt 0:01:23]} 16. Nf4 {[%emt 0:01:53][%csl LRa6,LRe6]} Bxf1 {[%emt 0:01:19]} 17. Kxf1 {[%emt 0:00:37]} Kf7 {[%emt 0:04:07]} 18. Ke2 {[%emt 0:01:30]} Nc4 {[%emt 0:00:26]} 19. Rhb1 {[%emt 0:03:26]} Rab8 {[%emt 0:01:37] Prevents Rb7.} 20. Nd3 {[%emt 0:07:08]} Rdc8 {[%emt 0:06:47]} 21. Bf2 {[%emt 0:04:20]} a6 {[%emt 0:04:22]} 22. h4 {[%emt 0:00:28]} Rb6 {[%emt 0:03:49]} 23. Rxb6 {[%emt 0:05:48]} Ncxb6 {[%emt 0:00:07]} 24. Nb2 {[%emt 0:08:34]} Ne5 {[%emt 0:01:42]} 25. Kd2 {[%emt 0:07:58]} (25. Ra3 $14) 25... Ke7 {[%emt 0:03:16]} 26. Kc2 {[%emt 0:01:49]} Nbc4 {[%emt 0:00:53]} 27. Nxc4 {[%emt 0:00:45]} Nxc4 $11 {[%emt 0:00:05][%mdl 4096] Endgame KRB-KRN} 28. Kb3 {[%emt 0:00:21]} Na5+ {[%emt 0:00:36]} 29. Kc2 {[%emt 0:00:05]} Kd6 {[%emt 0:01:12]} 30. h5 {[%emt 0:02:37]} Kc6 {[%emt 0:00:43]} 31. Rd1 {[%emt 0:09:40]} Rb8 {[%emt 0:09:25]} 32. Be3 {[%emt 0:01:46]} Nc4 {[%emt 0:03:13]} 33. Bc1 {[%emt 0:00:25]} e5 {[%emt 0:05:39]} 34. g3 {[%emt 0:01:50]} Nb6 {[%emt 0:01:07]} 35. f4 {[%emt 0:01:52]} Re8 {[%emt 0:01:42]} 36. fxe5 {[%emt 0:01:26]} Rxe5 {[%emt 0:00:07]} 37. Bf4 {[%emt 0:01:04]} Re6 {[%emt 0:00:40]} (37... Rxe4 $2 38. Rd6+ Kb7 39. a5 $18) 38. Rd8 {[%emt 0:00:25]} g5 {[%emt 0:00:41]} (38... Rxe4 $2 39. Rd6+ Kb7 40. a5 $18) 39. hxg6 $1 {[%emt 0:02:31]} hxg6 {[%emt 0:00:05]} 40. a5 {[%emt 0:00:00]} Nc4 {[%emt 0:00:00]} 41. Rc8+ {[%emt 0:13:36]} Kb5 {[%emt 0:01:36]} 42. Kd3 {[%emt 0:00:19]} ({White should try} 42. Rb8+ $1 $11 Kxa5 43. Bc7+ Ka4 44. Kd3) 42... Nxa5 $15 {[%emt 0:01:47] And now ...Nc6 would win.} 43. g4 $2 {[%emt 0:01:45] Now White is beyond hope.} (43. Rb8+ $15 Kc6 44. Be3) 43... Nc6 $19 {[%emt 0:03:02]} 44. Rg8 {[%emt 0:04:47]} (44. Rc7 $142) 44... c4+ {[%emt 0:02:39]} 45. Ke3 {[%emt 0:00:06]} g5 {[%emt 0:00:39]} 46. Bc7 {[%emt 0:01:21]} (46. Bg3 $142) 46... a5 {[%emt 0:00:50]} 47. Ra8 {[%emt 0:03:52]} (47. e5 {was worth a try.} a4 48. Bd6) 47... Re7 {[%emt 0:02:55]} 48. Bg3 {[%emt 0:00:59]} Rd7 {[%emt 0:03:39]} 49. Ke2 {[%emt 0:00:20]} a4 {[%emt 0:01:02]} 50. Bf2 {[%emt 0:05:41]} Rd8 {[%emt 0:05:00]} 51. Rxd8 {[%emt 0:00:24]} Nxd8 {[%emt 0:00:06] KB-KN} 52. Kd2 {[%emt 0:00:05]} a3 {[%emt 0:00:34]} 53. Kc2 {[%emt 0:00:03]} Nc6 {[%emt 0:01:38] [#] ( -> ...Ka4)} 54. Bd4 {[%emt 0:02:41]} Nxd4+ {[%emt 0:00:32] Black mates.} 55. cxd4 {[%emt 0:00:08]} Kb4 {[%emt 0:00:06]} 56. d5 {[%emt 0:00:11] [#]} c3 $1 {[%emt 0:00:17]} 57. d6 {[%emt 0:00:09]} a2 {[%emt 0:00:07]} 58. d7 {[%emt 0:00:08]} a1=Q {[%emt 0:00:06]} 59. d8=Q {[%emt 0:00:09]} Qb2+ {[%emt 0:00:15] Weighted Error Value: White=0.49/Black=0.03 (flawless)} 0-1

[Event "Przeworsk GM norm 2022"]
[Site "Przeworsk"]
[Date "2022.05.31"]
[Round "3.2"]
[White "Licznerski, Lukasz"]
[Black "Neugebauer, Martin"]
[Result "1-0"]
[ECO "B92"]
[WhiteElo "2439"]
[BlackElo "2505"]
[Annotator "TA"]
[PlyCount "201"]
[EventDate "2022.05.30"]
[EventType "tourn"]
[EventCountry "POL"]
[SourceTitle "playchess.com"]
[Source "ChessBase"]
[SourceQuality "1"]
[TimeControl "40/5400+30:1800+30"]

{[%evp 56,201,-39,-47,-40,-47,-50,-58,0,-33,-33,-41,-42,-145,-145,-132,-142,-163,-41,-65,0,0,0,0,0,0,0,0,17,16,12,0,0,0,0,0,0,0,0,0,0,0,71,78,101,63,64,64,64,64,64,64,64,0,0,0,85,64,78,78,85,93,93,100,93,100,1232,1226,1138,343,343,0,1081,917,885,508,785,343,922,343,919,883,872,701,607,368,1016,909,992,983,937,826,944,874,831,683,902,890,927,928,987,954,872,343,738,259,695,575,343,343,343,343,433,343,1545,1530,1580,1410,5334,1565,1473,1384,1236,1066,3259,3212,3039,2213,1215,0,0,0,2762,2489,2236,1080,2031,1749,1971,980,1177,1439,1401,1319,1085,992,29988,29989]} 1. e4 {[%emt 0:01:46]} c5 {[%emt 0:00:20]} 2. Nf3 {[%emt 0:00:05]} d6 {[%emt 0:00:41]} 3. d4 {[%emt 0:00:10]} cxd4 {[%emt 0:00:06]} 4. Nxd4 {[%emt 0:00:04]} Nf6 {[%emt 0:00:17]} 5. Nc3 {[%emt 0:00:02]} a6 {[%emt 0:00:29]} 6. Be2 {[%emt 0:00:11]} e5 {[%emt 0:00:48]} 7. Nf3 {[%emt 0:00:06]} Be7 {[%emt 0:01:06]} 8. Bg5 {[%emt 0:00:03]} Nbd7 {[%emt 0:00:24]} 9. a4 {[%emt 0:00:16]} Qb6 {[%emt 0:01:37]} 10. a5 {[%emt 0:08:30]} Qxb2 {[%emt 0:17:22]} 11. Bd2 {[%emt 0:02:28]} Qb4 {[%emt 0:00:20]} 12. Nd5 {[%emt 0:02:34]} Qc5 {[%emt 0:00:22]} 13. Bb4 {[%emt 0:00:08]} Qc6 {[%emt 0:00:24]} 14. Nxe7 {[%emt 0:01:06]} Kxe7 {[%emt 0:00:05]} 15. Nxe5 {[%emt 0:04:51]} Nxe5 {[%emt 0:01:41]} 16. f4 {[%emt 0:00:01]} Nc4 {[%emt 0:09:36]} 17. Bxc4 {[%emt 0:33:07]} Qxe4+ {[%emt 0:00:10]} 18. Qe2 {[%emt 0:00:01]} Be6 {[%emt 0:01:21]} 19. Qxe4 {[%emt 0:00:07]} Nxe4 {[%emt 0:00:07]} 20. Bd3 {[%emt 0:00:54]} Nc5 {[%emt 0:09:49]} 21. Bxc5 {[%emt 0:01:21]} dxc5 {[%emt 0:00:05]} 22. Be4 {[%emt 0:03:13]} Rab8 {[%emt 0:00:23]} 23. Rb1 {[%emt 0:06:44]} Kd6 {[%emt 0:00:24]} 24. O-O {[%emt 0:02:30]} Kc7 {[%emt 0:00:51]} 25. Rb6 {[%emt 0:01:47]} Rhd8 26. Rfb1 {[%emt 0:04:11]} Bd5 {[%emt 0:05:10]} 27. Bxh7 {[%emt 0:00:45]} Bc6 {[%emt 0:10:28]} 28. Bd3 {[%emt 0:07:09]} Re8 {[%emt 0:00:51]} 29. R6b3 $1 {[%emt 0:04:04]} Rbd8 {[%emt 0:01:36]} 30. Rc3 {[%emt 0:01:35]} Rd5 {[%emt 0:02:29]} 31. Kf2 {[%emt 0:04:26]} Rd4 {[%emt 0:04:59]} (31... c4 $15 32. Rxc4 Rxa5) 32. Rxc5 {[%emt 0:04:27]} (32. g3 $5 {[%cal Rc3c5]}) 32... Rxf4+ {[%emt 0:00:08]} 33. Kg1 {[%emt 0:03:01]} f6 {[%emt 0:00:18]} 34. Rh5 {[%emt 0:01:50]} (34. Ra1 $15) 34... Re5 $1 $17 {[%emt 0:02:12]} 35. Rxe5 {[%emt 0:03:12]} fxe5 {[%emt 0:00:02]} 36. Ra1 {[%emt 0:00:23]} Kd6 {[%emt 0:03:47]} ({Black should try} 36... Ra4 $19 37. Rxa4 Bxa4) 37. g3 $15 {[%emt 0:00:11]} Rd4 {[%emt 0:01:04]} (37... Rf7 $15) 38. Kf2 $11 {[%emt 0:00:13]} Kc5 {[%emt 0:03:31]} 39. Ke3 {[%emt 0:00:11]} Kb4 {[%emt 0:01:46]} 40. c4 {[%emt 0:00:00]} Rg4 {[%emt 0:00:00]} 41. Be2 {[%emt 0:06:06]} Rg5 {[%emt 0:05:02]} 42. g4 {[%emt 0:01:30]} e4 {[%emt 0:06:36]} 43. h4 {[%emt 0:01:55]} Rxa5 {[%emt 0:03:18]} 44. Rxa5 {[%emt 0:01:00]} Kxa5 {[%emt 0:00:02]} 45. h5 {[%emt 0:00:01]} Kb4 {[%emt 0:00:28]} 46. g5 {[%emt 0:00:10]} Be8 $1 {[%emt 0:00:22]} 47. Kxe4 {[%emt 0:04:15]} ({Wrong is} 47. h6 $2 gxh6 48. gxh6 Bg6 $19) 47... a5 $1 {[%emt 0:00:36]} 48. Kf5 {[%emt 0:00:22]} g6+ {[%emt 0:00:54]} (48... a4 $11 49. h6 a3) 49. hxg6 $16 {[%emt 0:01:23]} a4 {[%emt 0:01:37]} 50. g7 $1 {[%emt 0:02:49]} Bf7 {[%emt 0:00:03]} 51. Kf6 $1 {[%emt 0:01:35]} Bg8 {[%emt 0:00:05]} 52. Ke7 $1 {[%emt 0:02:21]} a3 {[%emt 0:00:51]} 53. Kf8 {[%emt 0:00:04]} Be6 {[%emt 0:01:50]} (53... a2 $2 54. Kxg8 a1=Q 55. Kf8 Qa8+ 56. Kf7 $18) 54. Ke7 {[%emt 0:00:15]} (54. Bh5 $5 {[%cal Rh5f7]} a2 55. Bf7 Bxf7 56. Kxf7 $18) 54... Bg8 {[%emt 0:00:07]} 55. Kf8 {[%emt 0:00:03]} Be6 {[%emt 0:00:04] [#]} (55... a2 $2 56. Kxg8 a1=Q 57. Kf8 Qa8+ 58. Kf7 $18) 56. Bh5 $1 {[%emt 0:01:14]} a2 {[%emt 0:02:18]} 57. Bf7 {[%emt 0:00:17]} Bxf7 {[%emt 0:00:22]} 58. Kxf7 {[%emt 0:00:02]} a1=Q {[%emt 0:00:08]} 59. g8=Q Qf1+ {[%emt 0:01:58]} 60. Ke7 {[%emt 0:01:13]} Qf5 $2 {[%emt 0:02:08][%mdl 8192]} (60... b5 $16) 61. Qd5 $18 {[%emt 0:01:46]} Qh7+ {[%emt 0:00:05]} 62. Qf7 $2 {[%emt 0:07:08]} (62. Kd8 {c5 is the strong threat.} Kc3 63. c5) 62... Qh4 $18 {[%emt 0:00:14]} 63. Qd5 $2 {[%emt 0:01:04]} (63. Qf6 Qe4+ 64. Kf8) 63... Qh7+ $1 $18 {[%emt 0:00:34]} 64. Kf6 {[%emt 0:00:41]} Qh8+ {[%emt 0:00:21]} 65. Kg6 {[%emt 0:00:51]} b6 {[%emt 0:02:07]} 66. Qc6 {[%emt 0:04:30]} (66. Kf5 $142 {Threatens to win with g6.} Qc8+ 67. Kf6) 66... Qd8 $2 {[%emt 0:02:22]} (66... Qh2 67. Qxb6+ Kxc4) 67. Qb5+ $2 {[%emt 0:00:33]} (67. Kf5 Qd3+ 68. Qe4 Qd7+ 69. Kf6 Qd6+ 70. Kf7) 67... Ka3 $2 {[%emt 0:02:42]} (67... Kc3 68. Kf5 Qd3+ 69. Ke6 Qg6+ 70. Kd7 Qf7+ 71. Kc6 Kc2) 68. Qd5 {[%emt 0:00:16]} Qe8+ {[%emt 0:01:20]} 69. Kg7 {[%emt 0:00:47]} Qe7+ {[%emt 0:00:11]} 70. Kh6 {[%emt 0:00:08]} Qf8+ {[%emt 0:00:19] [#]} 71. Kh5 $1 {[%emt 0:00:18]} Qh8+ {[%emt 0:00:28]} 72. Kg4 {[%emt 0:00:10]} Qc8+ {[%emt 0:00:23]} 73. Kf4 {[%emt 0:00:55]} Qf8+ {[%emt 0:00:21]} 74. Qf5 {[%emt 0:01:44]} Qd6+ {[%emt 0:00:04]} 75. Qe5 {[%emt 0:00:25]} Qf8+ {[%emt 0:01:24]} 76. Qf6 {[%emt 0:00:37]} Qb8+ {[%emt 0:00:22]} 77. Kf5 {[%emt 0:00:34]} Qc8+ {[%emt 0:00:17]} 78. Qe6 {[%emt 0:00:06]} Qc5+ {[%emt 0:01:09]} 79. Kg6 $2 {[%emt 0:00:20]} (79. Qd5 Qf8+ 80. Ke6) 79... Kb4 $2 {[%emt 0:01:00]} (79... Qc7 80. Kf5 Qc5+ 81. Qd5 Qf2+ 82. Ke6 Qe3+ 83. Kd6 Qg1) 80. Qf7 $2 {[%emt 0:01:17]} (80. Kh5 Qf2 81. g6) 80... Ka3 $2 {[%emt 0:01:18]} (80... Qd4 81. Qd5 Qe3) 81. Kh6 {[%emt 0:00:31]} Qe3 {[%emt 0:00:20]} 82. Qf6 {[%emt 0:01:36]} Qh3+ {[%emt 0:00:34]} 83. Kg7 {[%emt 0:00:18]} Qd7+ {[%emt 0:00:14]} 84. Kg8 {[%emt 0:00:15]} Ka2 $2 {[%emt 0:01:25]} (84... Ka4 85. g6 Qc8+ 86. Kh7 Qxc4) 85. g6 $18 {[%emt 0:00:57]} Qe8+ {[%emt 0:07:01]} 86. Kh7 {[%emt 0:00:04]} Qd7+ {[%emt 0:00:21]} 87. Qf7 {[%emt 0:00:43]} (87. g7 $142 Qh3+ 88. Kg6 Qg4+ 89. Qg5 Qe6+ 90. Kh7 Qe4+ 91. Qg6 Qh1+ 92. Kg8 Qa8+ 93. Kh7 Qh1+ 94. Kg8 Qa8+ 95. Kf7 Qb7+ 96. Kf8 Qc8+ 97. Qe8 Qc5+ 98. Kg8) 87... Qh3+ $18 {[%emt 0:00:06]} 88. Kg8 {[%emt 0:00:15]} Qc8+ {[%emt 0:00:13]} 89. Kg7 {[%emt 0:00:09]} Qc5 {[%emt 0:02:08]} 90. Qd5 {[%emt 0:00:52]} Qc7+ {[%emt 0:01:05]} 91. Kg8 {[%emt 0:00:28]} Qb8+ {[%emt 0:00:10]} 92. Kh7 {[%emt 0:00:08]} (92. Kf7 $142 Qc7+ 93. Ke6 Qc8+ 94. Qd7) 92... Qh2+ $1 $18 {[%emt 0:00:11]} 93. Kg7 {[%emt 0:00:02]} Qc7+ {[%emt 0:00:15]} 94. Kf6 {[%emt 0:00:18]} Qf4+ {[%emt 0:00:32]} 95. Ke7 {[%emt 0:00:25]} (95. Ke6 $142 Qg4+ 96. Kf7 Qf4+ 97. Ke8) 95... Qc7+ $18 {[%emt 0:00:34]} 96. Ke6 {[%emt 0:00:21]} Qc8+ {[%emt 0:01:31]} 97. Kf6 {[%emt 0:00:03]} (97. Qd7 $142 Qa8 98. g7 Qe4+ 99. Kf7 Qf4+ 100. Ke8 Qe4+ 101. Kd8 Qa8+ 102. Qc8) 97... Qf8+ $18 {[%emt 0:00:11]} 98. Kg5 {[%emt 0:00:50]} Qe7+ {[%emt 0:00:12]} 99. Kf5 {[%emt 0:00:14]} Qf8+ {[%emt 0:00:29]} 100. Kg4 {[%emt 0:00:11]} Ka3 {[%emt 0:01:36]} 101. Qf3+ {[%emt 0:00:03]} 1-0

[Event "Przeworsk GM norm 2022"]
[Site "Przeworsk"]
[Date "2022.05.31"]
[Round "3.3"]
[White "Baum, Jonasz"]
[Black "Mis, Mieszko"]
[Result "0-1"]
[ECO "B85"]
[WhiteElo "2409"]
[BlackElo "2388"]
[Annotator "TA"]
[PlyCount "104"]
[EventDate "2022.05.30"]
[EventType "tourn"]
[EventCountry "POL"]
[SourceTitle "playchess.com"]
[Source "ChessBase"]
[SourceQuality "1"]
[TimeControl "40/5400+30:1800+30"]

{[%evp 15,104,-8,-7,-6,-8,-14,-21,-69,-50,-70,-71,-146,-154,-129,-143,-97,29,28,20,23,33,26,25,29,37,31,29,19,122,127,124,126,158,162,164,169,204,149,450,436,447,339,446,330,334,309,1545,46,43,-79,0,-162,-16,-16,-18,-17,-18,-191,-204,-188,-183,-450,-454,-416,-177,-492,-415,-401,-416,-425,-401,-402,-397,-596,-509,-761,-818,-784,-822,-931,-926,-918,-915,-909,-822,-875,-869,-867,-745,-943,-813]} 1. e4 {[%emt 0:00:05]} c5 {[%emt 0:01:02]} 2. Nf3 {[%emt 0:00:28]} e6 {[%emt 0:00:26]} 3. d4 {[%emt 0:00:10]} cxd4 {[%emt 0:00:06]} 4. Nxd4 {[%emt 0:00:04]} a6 {[%emt 0:00:26]} 5. Be2 {[%emt 0:05:12]} Nf6 {[%emt 0:04:21]} 6. Nc3 {[%emt 0:00:34]} Qc7 {[%emt 0:01:27]} 7. O-O {[%emt 0:02:01]} d6 {[%emt 0:01:07]} 8. Be3 {[%emt 0:03:29]} b5 {[%emt 0:02:51][%cal Bb7b5,Bb5b4][%mdl 32]} 9. f4 {[%emt 0:06:39][%cal Oe4e5] B84: Sicilian Scheveningen: 6 Be2 a6, lines without early Be3.} Nbd7 {[%emt 0:11:59] Against e5} 10. Bf3 {[%emt 0:26:27][%cal Oe4e5]} Bb7 {[%emt 0:00:33]} 11. Qe1 {[%emt 0:07:52]} (11. Re1 $11 {should be considered.}) 11... Nc5 {[%emt 0:19:14][%cal Rc5e4]} (11... b4 $5 {[%cal Rb4c3]} 12. Nce2 Bxe4 $15) 12. Bf2 {[%emt 0:17:35]} b4 {[%emt 0:00:25] [#]} 13. Nd5 $146 {[%emt 0:04:05]} ({Predecessor:} 13. Nce2 Ncxe4 14. Qxb4 d5 15. Qa4+ Qd7 16. Qxd7+ Kxd7 17. Be3 Bd6 18. Rfd1 h5 19. Ng3 {½-½ (53) Rozgonyi,A (2103)-Szabo,Z (1886) Hungary 2016}) 13... exd5 $17 {[%emt 0:04:51]} 14. exd5+ {[%emt 0:00:02]} Be7 {[%emt 0:04:03]} 15. Nf5 {[%emt 0:00:33]} (15. a3 $142 b3 16. Nf5 Bxd5 17. Bxd5 Nxd5 18. cxb3) 15... Kf8 {[%emt 0:02:09]} (15... Nxd5 $17 16. Nxg7+ Kf8) 16. Qxe7+ $11 {[%emt 0:01:59]} Qxe7 {[%emt 0:00:08]} 17. Nxe7 {[%emt 0:00:01]} Kxe7 {[%emt 0:03:56]} 18. Bxc5 {[%emt 0:00:02]} dxc5 {[%emt 0:00:02]} 19. d6+ {[%emt 0:00:06][%mdl 64] Discovered Attack} Kxd6 {[%emt 0:00:02]} 20. Bxb7 {[%emt 0:00:04]} Ra7 {[%emt 0:00:02]} 21. Bf3 {[%emt 0:00:54]} Re7 {[%emt 0:01:32]} (21... Rd8 $11) 22. a3 $16 {[%emt 0:01:10]} Ra7 {[%emt 0:13:21]} 23. Rfd1+ {[%emt 0:04:46]} Kc7 {[%emt 0:11:24]} 24. axb4 {[%emt 0:00:23]} cxb4 {[%emt 0:00:22]} 25. Rd4 {[%emt 0:00:21]} Rb8 {[%emt 0:00:30]} 26. Rad1 {[%emt 0:07:43] Hoping for Rc4+.} a5 $2 {[%emt 0:01:33][%mdl 8192]} (26... Kc8 $16 {is tougher.} 27. Rd8+ Kc7) 27. Rc4+ $18 {[%emt 0:00:52]} Kb6 {[%emt 0:00:02]} 28. Rd6+ {[%emt 0:05:01]} Kb5 {[%emt 0:00:02]} 29. Be2 {[%emt 0:00:33] Threatening mate with b3.} Re8 {[%emt 0:00:48]} 30. Bd3 {[%emt 0:02:00]} Ka4 $2 {[%emt 0:00:09]} (30... Re3 31. Rc8+ Rxd3 32. Rxd3 (32. cxd3 Ka4 $11) 32... Kb6) 31. Rdd4 $2 {[%emt 0:02:24]} ({Only move:} 31. Rc5 $18 {[%csl Gc5][%cal Rd3b5]} Re1+ 32. Kf2 Ne4+ 33. Bxe4) 31... Re1+ $14 {[%emt 0:02:08]} 32. Bf1 {[%emt 0:00:13] [#]} (32. Kf2 $14 {was forced to keep a grip.} Rb1 33. b3+ Ka3 34. Rc5) 32... Rb1 {[%emt 0:01:32]} (32... Rae7 $1 $17 {And now ...Rb1 would win.} 33. f5 R7e2) 33. Rc5 $2 {[%emt 0:01:33]} (33. b3+ $1 $11 Ka3 34. h3) 33... Ng4 {[%emt 0:10:25]} (33... Rxb2 $19 {Strongly threatening ...Rb1.} 34. Rd1 Ka3) 34. Rd3 $11 {[%emt 0:01:32] [#]} Nxh2 $1 {[%emt 0:02:37]} 35. Kxh2 {[%emt 0:00:01][%cal Od3d1] Rd1! would kill now.} Rxf1 {[%emt 0:00:04][%mdl 4096] Endgame KRR-KRR} 36. Rc8 $2 {[%emt 0:00:38]} (36. Rdd5 $1 $11 {and White stays safe.}) 36... Rb1 $19 {[%emt 0:01:31]} (36... Rxf4 {leads to mate.} 37. Rb8 Rh4+ 38. Kg1) 37. Rb3 {[%emt 0:00:11]} Rb7 {[%emt 0:00:58] Prevents Rb8.} 38. Ra8 $2 {[%emt 0:01:14]} (38. g4) 38... Rc1 {[%emt 0:00:47]} ({Wrong is} 38... Rc7 $2 39. Rg3 Rxb2 40. Rg5 Rbxc2 41. Raxa5+ Kb3 42. Rxg7 $19) 39. Rg3 {[%emt 0:00:27]} g6 {[%emt 0:00:32]} (39... Rxc2 $142 40. b3+ Ka3 41. Rxa5+ Kb2 42. Rxg7 Kxb3 43. Rxh7 Rc3) 40. c4 $2 {[%emt 0:00:00]} (40. c3) 40... b3 {[%emt 0:00:00]} 41. Rd3 {[%emt 0:06:19]} Rxc4 {[%emt 0:01:34]} ({But not} 41... Rc2 $2 42. c5 $19) 42. Rd1 {[%emt 0:00:06]} Kb4 {[%emt 0:00:40]} 43. Kg3 {[%emt 0:00:04]} Rc2 {[%emt 0:09:08]} 44. Rd4+ {[%emt 0:00:39]} (44. Rb1 {was the only chance.}) 44... Kc5 {[%emt 0:00:17] Black is clearly winning.} 45. Rdd8 {[%emt 0:00:53]} Rxb2 {[%emt 0:01:18]} 46. Rxa5+ {[%emt 0:00:08]} Kb4 {[%emt 0:00:09]} 47. Re5 {[%emt 0:00:23]} Rc2 {[%emt 0:00:31]} 48. Rd4+ {[%emt 0:00:46]} Rc4 {[%emt 0:00:07]} 49. Rd2 {[%emt 0:00:07]} Ka3 {[%emt 0:00:39] White must now prevent ...b2.} 50. Re3 {[%emt 0:00:44]} Rbb4 {[%emt 0:00:58]} 51. Rf3 {[%emt 0:00:51]} Ka4 {Threatens to win with ...b2.} 52. Rb2 {[%emt 0:00:44]} Rc2 {[%emt 0:01:41] What a fight!  Weighted Error Value: White=0.62/Black=0.43} 0-1

[Event "Przeworsk GM norm 2022"]
[Site "Przeworsk"]
[Date "2022.05.31"]
[Round "3.4"]
[White "Mikrut, Dariusz"]
[Black "Omelja, Artem"]
[Result "1/2-1/2"]
[ECO "D59"]
[WhiteElo "2361"]
[BlackElo "2515"]
[Annotator "TA"]
[PlyCount "86"]
[EventDate "2022.05.30"]
[EventType "tourn"]
[EventCountry "POL"]
[SourceTitle "playchess.com"]
[Source "ChessBase"]
[SourceQuality "1"]
[TimeControl "40/5400+30:1800+30"]

{[%evp 30,86,0,0,11,0,0,0,0,0,24,9,13,13,18,21,21,8,8,9,28,32,30,21,28,18,15,11,11,12,35,9,40,31,88,20,20,20,32,9,40,41,42,15,37,6,70,75,70,68,57,11,11,0,4,4,4,0,8]} 1. d4 {[%emt 0:00:02]} d5 {[%emt 0:00:18]} 2. c4 {[%emt 0:00:04]} e6 {[%emt 0:00:05]} 3. Nf3 {[%emt 0:00:07]} Nf6 {[%emt 0:00:10]} 4. Nc3 {[%emt 0:00:08]} Be7 {[%emt 0:00:11]} 5. Bg5 {[%emt 0:00:11]} h6 {[%emt 0:00:40]} 6. Bh4 {[%emt 0:00:28]} O-O {[%emt 0:00:14]} 7. e3 {[%emt 0:00:06]} b6 {[%emt 0:00:46]} 8. cxd5 {[%emt 0:06:22]} Nxd5 {[%emt 0:00:33]} 9. Bxe7 {[%emt 0:00:12]} Qxe7 {[%emt 0:00:28]} 10. Nxd5 {[%emt 0:00:13]} exd5 {[%emt 0:00:08]} 11. Qb3 {[%emt 0:01:48]} Be6 {[%emt 0:01:57]} 12. Rc1 {[%emt 0:00:18]} c5 {[%emt 0:00:27]} 13. Qa3 {[%emt 0:00:12]} Rc8 {[%emt 0:00:13]} 14. Be2 {[%emt 0:03:48]} Kf8 {[%emt 0:01:45]} 15. dxc5 {[%emt 0:05:44]} bxc5 {[%emt 0:00:33]} 16. O-O {[%emt 0:01:13]} Nd7 {[%emt 0:00:27] [#] D59: Queen's Gambit Declined: Tartakower Defence: Main line (8 cxd5 Nxd5).} 17. Nd2 $146 {[%emt 0:12:10]} ({Predecessor:} 17. b3 a5 18. Bb5 Nb6 19. Qb2 Kg8 20. a4 Nd7 21. Rfd1 Nf6 22. Ne5 Rc7 23. Nd3 {½-½ (71) Hertneck,G (2496)-Bacrot,E (2723) Germany 2017}) 17... c4 {[%emt 0:05:37]} 18. Qc3 {[%emt 0:02:47]} Rab8 {[%emt 0:01:25]} 19. b3 {[%emt 0:09:17]} Nb6 {[%emt 0:01:28]} 20. Qd4 {[%emt 0:11:56]} Qc5 {[%emt 0:00:29]} 21. Nf3 {[%emt 0:03:07]} Qxd4 {[%emt 0:02:12]} 22. Nxd4 {[%emt 0:00:15]} ({But not} 22. exd4 a5 $15) 22... Bd7 {[%emt 0:00:19]} 23. Rc2 {[%emt 0:01:25]} cxb3 {[%emt 0:01:44]} 24. Rxc8+ {[%emt 0:00:08]} Rxc8 {[%emt 0:00:08]} 25. axb3 {[%emt 0:00:03]} a5 {[%emt 0:00:22]} 26. Bf3 {[%emt 0:00:19]} g6 {[%emt 0:00:38]} 27. h4 {[%emt 0:00:08]} h5 {[%emt 0:00:12]} 28. Ra1 {[%emt 0:00:05]} Rc5 {[%emt 0:00:10]} 29. Kh2 {[%emt 0:00:17]} a4 {[%emt 0:01:48]} 30. bxa4 {[%emt 0:00:19]} Bxa4 {[%emt 0:00:27]} 31. Rb1 {[%emt 0:01:11]} Nc4 {[%emt 0:01:32]} (31... Nd7 $1 $14) 32. Rb7 {[%emt 0:11:57]} ({Better is} 32. Rb4 $16 Bd7 33. Nb3) 32... Ra5 $11 {[%emt 0:06:00]} 33. Kg3 {[%emt 0:04:40]} Ne5 {[%emt 0:00:45]} 34. Rc7 {[%emt 0:01:29]} Kg7 {[%emt 0:03:41]} 35. Be2 {[%emt 0:02:46]} Kf6 {[%emt 0:01:01]} 36. Kf4 {[%emt 0:07:03]} Nd7 {[%emt 0:00:51]} 37. Rc1 {[%emt 0:12:17]} Rc5 {[%emt 0:08:19]} (37... Nc5 $11) 38. Ra1 $14 {[%emt 0:01:21] White is more active.} Nb6 {[%emt 0:00:12]} 39. Rb1 {[%emt 0:00:37]} Nd7 {[%emt 0:02:46]} 40. Rb7 {[%emt 0:00:00]} (40. g4 $14) 40... Nf8 {[%emt 0:00:00] The position is equal.} 41. Ra7 {[%emt 0:10:21]} Bd7 {[%emt 0:01:25]} 42. Kg3 {[%emt 0:00:20]} Bc8 {[%emt 0:02:04]} 43. Ra2 {[%emt 0:03:35]} Ke5 {Weighted Error Value: White=0.14 (very precise) /Black=0.12 (very precise)} 1/2-1/2